[Event "*** SCC Grand Prix: Titled Tuesday Blitz"]
[Site "Chess.com"]
[Date "2020.10.13"]
[Round "2"]
[White "chito89"]
[Black "Lion-Al-Messi"]
[Result "1-0"]
[WhiteElo "2805"]
[BlackElo "2539"]
[TimeControl "180+1"]
[EndTime "10:17:46 PDT"]
[Termination "chito89 won on time"]

1. e4 {[%clk 0:02:59.2]} 1... e6 {[%clk 0:03:00.1]} 2. d4 {[%clk 0:02:56.3]}
2... d5 {[%clk 0:03:01]} 3. Nc3 {[%clk 0:02:41.6]} 3... Nf6 {[%clk 0:02:58.5]}
4. e5 {[%clk 0:02:41.3]} 4... Nfd7 {[%clk 0:02:57.9]} 5. Nce2 {[%clk 0:02:41.7]}
5... c5 {[%clk 0:02:58]} 6. c3 {[%clk 0:02:42.4]} 6... Nc6 {[%clk 0:02:58.5]} 7.
Nf3 {[%clk 0:02:42.3]} 7... f6 {[%clk 0:02:48.9]} 8. Nf4 {[%clk 0:02:40.4]} 8...
Qe7 {[%clk 0:02:48.4]} 9. Bb5 {[%clk 0:02:37.6]} 9... cxd4 {[%clk 0:02:44.6]}
10. Nxd4 {[%clk 0:02:33.6]} 10... Nxd4 {[%clk 0:02:24.7]} 11. Qxd4 {[%clk
0:02:32.3]} 11... a6 {[%clk 0:02:16.8]} 12. Bxd7+ {[%clk 0:02:28.1]} 12... Bxd7
{[%clk 0:02:17.7]} 13. O-O {[%clk 0:02:24.6]} 13... fxe5 {[%clk 0:02:08.1]} 14.
Qxe5 {[%clk 0:02:24]} 14... Qf6 {[%clk 0:02:07.8]} 15. Qh5+ {[%clk 0:02:12.3]}
15... Qf7 {[%clk 0:02:06.7]} 16. Qe2 {[%clk 0:02:10.5]} 16... Bb5 {[%clk
0:01:51.8]} 17. Qxe6+ {[%clk 0:02:03.3]} 17... Qxe6 {[%clk 0:01:45.4]} 18. Nxe6
{[%clk 0:02:03.9]} 18... Bd6 {[%clk 0:01:36.4]} 19. Rd1 {[%clk 0:01:35.5]} 19...
Kf7 {[%clk 0:01:20.5]} 20. Ng5+ {[%clk 0:01:31.1]} 20... Kg6 {[%clk 0:01:20.6]}
21. Be3 {[%clk 0:01:23.7]} 21... Rad8 {[%clk 0:01:03.5]} 22. Ne6 {[%clk
0:01:15.1]} 22... Rd7 {[%clk 0:01:01.5]} 23. Nd4 {[%clk 0:01:11.1]} 23... Bc6
{[%clk 0:00:56.7]} 24. Rd2 {[%clk 0:01:04.5]} 24... Re8 {[%clk 0:00:55.9]} 25.
Rad1 {[%clk 0:01:03.4]} 25... Bb8 {[%clk 0:00:51.4]} 26. h3 {[%clk 0:00:51.2]}
26... Ba4 {[%clk 0:00:45.1]} 27. b3 {[%clk 0:00:48.5]} 27... Bc6 {[%clk
0:00:45.1]} 28. Nc2 {[%clk 0:00:49.1]} 28... Rf8 {[%clk 0:00:40.3]} 29. Nb4
{[%clk 0:00:48.6]} 29... Rfd8 {[%clk 0:00:30.5]} 30. Bb6 {[%clk 0:00:40]} 30...
Re8 {[%clk 0:00:19.6]} 31. g3 {[%clk 0:00:37.6]} 31... Re6 {[%clk 0:00:09.2]}
32. Bc5 {[%clk 0:00:32.9]} 32... Re5 {[%clk 0:00:04.7]} 33. Be3 {[%clk
0:00:31.9]} 33... a5 {[%clk 0:00:03.5]} 34. Nc2 {[%clk 0:00:29.1]} 34... Re8
{[%clk 0:00:03.3]} 35. c4 {[%clk 0:00:27.6]} 35... Red8 {[%clk 0:00:02.6]} 36.
Bb6 {[%clk 0:00:27.8]} 36... Bc7 {[%clk 0:00:02.3]} 37. Bxc7 {[%clk 0:00:27.6]}
37... Rxc7 {[%clk 0:00:03.2]} 38. Ne3 {[%clk 0:00:28.4]} 38... Rcd7 {[%clk
0:00:02.3]} 39. cxd5 {[%clk 0:00:26.7]} 39... Bb5 {[%clk 0:00:02.6]} 40. Ng4
{[%clk 0:00:23.2]} 40... Kf5 {[%clk 0:00:02.3]} 41. Re1 {[%clk 0:00:22.1]} 41...
Rxd5 {[%clk 0:00:02.5]} 42. Ne3+ {[%clk 0:00:21.1]} 1-0

[Event "*** SCC Grand Prix: Titled Tuesday Blitz"]
[Site "Chess.com"]
[Date "2020.10.13"]
[Round "2"]
[White "venus02"]
[Black "Morshynska"]
[Result "1-0"]
[WhiteElo "2464"]
[BlackElo "2245"]
[TimeControl "180+1"]
[EndTime "10:17:47 PDT"]
[Termination "venus02 won on time"]

1. e4 {[%clk 0:02:59.2]} 1... e5 {[%clk 0:02:59.4]} 2. Nf3 {[%clk 0:02:59.1]}
2... Nc6 {[%clk 0:03:00]} 3. Bb5 {[%clk 0:02:59.3]} 3... a6 {[%clk 0:03:00.4]}
4. Bxc6 {[%clk 0:02:58.9]} 4... dxc6 {[%clk 0:03:00.2]} 5. d4 {[%clk 0:02:59.6]}
5... exd4 {[%clk 0:03:00.1]} 6. Qxd4 {[%clk 0:02:59.6]} 6... Qxd4 {[%clk
0:02:59.6]} 7. Nxd4 {[%clk 0:03:00.1]} 7... Bd7 {[%clk 0:03:00.5]} 8. Nc3 {[%clk
0:02:59.7]} 8... O-O-O {[%clk 0:03:00.7]} 9. Be3 {[%clk 0:02:59.2]} 9... Bb4
{[%clk 0:02:49.2]} 10. O-O-O {[%clk 0:02:57.6]} 10... Bxc3 {[%clk 0:02:46.2]}
11. bxc3 {[%clk 0:02:57.8]} 11... Re8 {[%clk 0:02:46.8]} 12. f3 {[%clk
0:02:36.4]} 12... f5 {[%clk 0:02:44.6]} 13. Nb3 {[%clk 0:02:31.6]} 13... b6
{[%clk 0:02:29.5]} 14. Bd4 {[%clk 0:02:29.7]} 14... Nf6 {[%clk 0:02:22.6]} 15.
Bxf6 {[%clk 0:02:21.9]} 15... gxf6 {[%clk 0:02:23.5]} 16. exf5 {[%clk
0:02:22.2]} 16... Bxf5 {[%clk 0:02:21]} 17. Rde1 {[%clk 0:02:20.3]} 17... c5
{[%clk 0:02:17.5]} 18. Nd2 {[%clk 0:02:19.7]} 18... h5 {[%clk 0:01:52.3]} 19. g3
{[%clk 0:02:16.8]} 19... Kd7 {[%clk 0:01:47.6]} 20. a3 {[%clk 0:02:12.1]} 20...
Rxe1+ {[%clk 0:01:41]} 21. Rxe1 {[%clk 0:02:11]} 21... Re8 {[%clk 0:01:41.9]}
22. Rxe8 {[%clk 0:02:10.4]} 22... Kxe8 {[%clk 0:01:42.8]} 23. Nf1 {[%clk
0:02:08.1]} 23... Kd7 {[%clk 0:01:39.7]} 24. Ne3 {[%clk 0:02:08.2]} 24... Ke6
{[%clk 0:01:32.1]} 25. Kd2 {[%clk 0:01:43.6]} 25... Bg6 {[%clk 0:01:29.6]} 26.
Ng2 {[%clk 0:01:42.2]} 26... Ke5 {[%clk 0:01:23.4]} 27. Nf4 {[%clk 0:01:39.8]}
27... Bf7 {[%clk 0:01:17.8]} 28. h4 {[%clk 0:01:36.8]} 28... c4 {[%clk 0:01:11]}
29. Ke3 {[%clk 0:01:33.1]} 29... Kf5 {[%clk 0:00:44.1]} 30. Ne2 {[%clk
0:01:21.9]} 30... c5 {[%clk 0:00:42]} 31. Ng1 {[%clk 0:00:44.2]} 31... b5 {[%clk
0:00:40.2]} 32. Nh3 {[%clk 0:00:26.6]} 32... a5 {[%clk 0:00:39.2]} 33. Nf2
{[%clk 0:00:26.8]} 33... b4 {[%clk 0:00:18.9]} 34. cxb4 {[%clk 0:00:20.2]} 34...
cxb4 {[%clk 0:00:18.1]} 35. axb4 {[%clk 0:00:20.1]} 35... axb4 {[%clk
0:00:14.9]} 36. Ne4 {[%clk 0:00:20]} 36... Ke5 {[%clk 0:00:12.8]} 37. Nd2 {[%clk
0:00:09.5]} 37... Kd5 {[%clk 0:00:11.6]} 38. g4 {[%clk 0:00:09.1]} 38... c3
{[%clk 0:00:05.2]} 39. Ne4 {[%clk 0:00:08.5]} 39... hxg4 {[%clk 0:00:02.2]} 40.
Nxf6+ {[%clk 0:00:07.3]} 1-0

[Event "*** SCC Grand Prix: Titled Tuesday Blitz"]
[Site "Chess.com"]
[Date "2020.10.13"]
[Round "2"]
[White "ClydeHillKid"]
[Black "esapunov"]
[Result "0-1"]
[WhiteElo "2315"]
[BlackElo "2657"]
[TimeControl "180+1"]
[EndTime "10:17:48 PDT"]
[Termination "esapunov won by resignation"]

1. e4 {[%clk 0:03:00.9]} 1... c5 {[%clk 0:02:59.6]} 2. Nf3 {[%clk 0:03:00.7]}
2... d6 {[%clk 0:03:00]} 3. d4 {[%clk 0:03:00.5]} 3... cxd4 {[%clk 0:03:00.4]}
4. Nxd4 {[%clk 0:03:01.4]} 4... Nf6 {[%clk 0:03:00.8]} 5. Nc3 {[%clk 0:03:01.7]}
5... Nc6 {[%clk 0:03:01.2]} 6. Bc4 {[%clk 0:03:01.3]} 6... e6 {[%clk 0:03:01.1]}
7. Be3 {[%clk 0:03:00.3]} 7... Be7 {[%clk 0:03:01.2]} 8. O-O {[%clk 0:02:59]}
8... O-O {[%clk 0:03:00.4]} 9. f4 {[%clk 0:02:48.6]} 9... d5 {[%clk 0:03:00.3]}
10. exd5 {[%clk 0:02:46.3]} 10... exd5 {[%clk 0:03:00.5]} 11. Be2 {[%clk
0:02:44.6]} 11... Re8 {[%clk 0:02:59.8]} 12. Qd2 {[%clk 0:02:36.8]} 12... Bc5
{[%clk 0:02:29.2]} 13. Rad1 {[%clk 0:02:30]} 13... Qb6 {[%clk 0:01:44]} 14. Na4
{[%clk 0:02:21.3]} 14... Bxd4 {[%clk 0:01:43.6]} 15. Nxb6 {[%clk 0:02:09.9]}
15... Bxe3+ {[%clk 0:01:43.1]} 16. Qxe3 {[%clk 0:02:05.9]} 16... Rxe3 {[%clk
0:01:42.8]} 17. Nxa8 {[%clk 0:01:57.8]} 17... Rxe2 {[%clk 0:01:41.8]} 18. Rfe1
{[%clk 0:01:56.1]} 18... Rxc2 {[%clk 0:01:38.3]} 19. Rxd5 {[%clk 0:01:54.3]}
19... h6 {[%clk 0:01:30]} 20. Rb5 {[%clk 0:01:44.1]} 20... b6 {[%clk 0:01:21.5]}
21. Nc7 {[%clk 0:01:38.5]} 21... Nd4 {[%clk 0:01:13.8]} 22. Rb4 {[%clk
0:01:27.4]} 22... Ne2+ {[%clk 0:01:10.6]} 23. Kf1 {[%clk 0:01:22]} 23... Nxf4
{[%clk 0:01:00.5]} 24. Rxf4 {[%clk 0:01:11.2]} 24... Rxc7 {[%clk 0:00:59.5]} 25.
Kf2 {[%clk 0:01:04.6]} 25... Be6 {[%clk 0:00:59.2]} 26. a3 {[%clk 0:01:01]}
26... Nd5 {[%clk 0:00:56.6]} 27. Rd4 {[%clk 0:00:56.3]} 27... a5 {[%clk
0:00:56.7]} 28. b4 {[%clk 0:00:52.8]} 28... axb4 {[%clk 0:00:55.9]} 29. axb4
{[%clk 0:00:53.7]} 29... g5 {[%clk 0:00:55.2]} 30. g3 {[%clk 0:00:52.6]} 30...
Kg7 {[%clk 0:00:54.9]} 31. Re2 {[%clk 0:00:47.9]} 31... Rc3 {[%clk 0:00:52.8]}
32. Red2 {[%clk 0:00:46.5]} 32... Nf6 {[%clk 0:00:51.7]} 33. h4 {[%clk
0:00:29.9]} 33... g4 {[%clk 0:00:48.5]} 34. Rf4 {[%clk 0:00:24.9]} 34... Rb3
{[%clk 0:00:43.7]} 35. Rd6 {[%clk 0:00:18.1]} 35... b5 {[%clk 0:00:39.3]} 36.
Rd2 {[%clk 0:00:17.2]} 36... Rc3 {[%clk 0:00:33.7]} 37. Rdd4 {[%clk 0:00:14]}
37... Kg6 {[%clk 0:00:31.5]} 38. Rd2 {[%clk 0:00:10.1]} 38... Rb3 {[%clk
0:00:30.3]} 39. Rdd4 {[%clk 0:00:08.9]} 39... Nh5 {[%clk 0:00:30]} 40. Rxg4+
{[%clk 0:00:07.5]} 40... Bxg4 {[%clk 0:00:29.7]} 41. Rxg4+ {[%clk 0:00:08.4]}
41... Kf6 {[%clk 0:00:27.2]} 42. Rd4 {[%clk 0:00:07.2]} 42... Ng7 {[%clk
0:00:25.9]} 43. Rf4+ {[%clk 0:00:07.5]} 43... Ke7 {[%clk 0:00:23.5]} 44. Re4+
{[%clk 0:00:07.3]} 44... Ne6 {[%clk 0:00:23.7]} 45. g4 {[%clk 0:00:07]} 45...
Rh3 {[%clk 0:00:23.1]} 46. g5 {[%clk 0:00:05.1]} 46... hxg5 {[%clk 0:00:22.5]}
47. hxg5 {[%clk 0:00:06]} 47... Rh5 {[%clk 0:00:22]} 48. Re5 {[%clk 0:00:03.8]}
48... Rxg5 {[%clk 0:00:21.7]} 49. Rxg5 {[%clk 0:00:04.1]} 49... Nxg5 {[%clk
0:00:21.6]} 50. Ke3 {[%clk 0:00:05]} 50... Ke6 {[%clk 0:00:22.2]} 51. Kd4 {[%clk
0:00:05.4]} 51... Kd6 {[%clk 0:00:22.9]} 52. Ke3 {[%clk 0:00:05.2]} 52... Kd5
{[%clk 0:00:23.4]} 53. Kd3 {[%clk 0:00:05.6]} 53... Ne6 {[%clk 0:00:23.9]} 54.
Kc3 {[%clk 0:00:05.8]} 54... Ke4 {[%clk 0:00:24]} 0-1

[Event "*** SCC Grand Prix: Titled Tuesday Blitz"]
[Site "Chess.com"]
[Date "2020.10.13"]
[Round "2"]
[White "alejanchess73"]
[Black "parnali1611"]
[Result "1-0"]
[WhiteElo "2406"]
[BlackElo "2154"]
[TimeControl "180+1"]
[EndTime "10:17:48 PDT"]
[Termination "alejanchess73 won by resignation"]

1. d4 {[%clk 0:03:00.9]} 1... d5 {[%clk 0:02:52.5]} 2. c4 {[%clk 0:03:00.4]}
2... Nf6 {[%clk 0:02:51.6]} 3. Nc3 {[%clk 0:02:59.4]} 3... e6 {[%clk 0:02:51.4]}
4. cxd5 {[%clk 0:02:58.8]} 4... exd5 {[%clk 0:02:51.1]} 5. Bg5 {[%clk
0:02:58.6]} 5... Be7 {[%clk 0:02:51.5]} 6. e3 {[%clk 0:02:57.8]} 6... c6 {[%clk
0:02:52]} 7. Bd3 {[%clk 0:02:57.7]} 7... Nbd7 {[%clk 0:02:52]} 8. Qc2 {[%clk
0:02:57.9]} 8... Nh5 {[%clk 0:02:50.3]} 9. Bxe7 {[%clk 0:02:57.3]} 9... Qxe7
{[%clk 0:02:50.1]} 10. Nge2 {[%clk 0:02:57.9]} 10... Nb6 {[%clk 0:02:47]} 11.
O-O-O {[%clk 0:02:57.8]} 11... Nf6 {[%clk 0:02:46.2]} 12. h3 {[%clk 0:02:55.6]}
12... Be6 {[%clk 0:02:46]} 13. Kb1 {[%clk 0:02:55.9]} 13... O-O-O {[%clk
0:02:39.1]} 14. Rc1 {[%clk 0:02:56.2]} 14... Kb8 {[%clk 0:02:39.1]} 15. Na4
{[%clk 0:02:56.6]} 15... Nxa4 {[%clk 0:02:35.7]} 16. Qxa4 {[%clk 0:02:57.5]}
16... Nd7 {[%clk 0:02:35]} 17. Rc3 {[%clk 0:02:48.5]} 17... Nb6 {[%clk
0:02:34.9]} 18. Qa5 {[%clk 0:02:48]} 18... g5 {[%clk 0:02:28.1]} 19. Rhc1 {[%clk
0:02:46.6]} 19... h5 {[%clk 0:02:25.9]} 20. Ra3 {[%clk 0:02:46.3]} 20... Nc8
{[%clk 0:02:25.4]} 21. Rb3 {[%clk 0:02:39.5]} 21... h4 {[%clk 0:02:21.1]} 22.
Rxc6 {[%clk 0:02:33.2]} 22... g4 {[%clk 0:02:18.1]} 23. hxg4 {[%clk 0:02:31.4]}
23... h3 {[%clk 0:02:15.9]} 24. gxh3 {[%clk 0:02:30.4]} 24... Rxh3 {[%clk
0:02:13.3]} 25. Rc1 {[%clk 0:02:04.7]} 25... Bxg4 {[%clk 0:02:09.8]} 26. Nc3
{[%clk 0:02:02.4]} 26... Be6 {[%clk 0:02:07]} 27. Nb5 {[%clk 0:02:01.3]} 27...
b6 {[%clk 0:02:06.6]} 28. Qa4 {[%clk 0:01:54.9]} 28... Nd6 {[%clk 0:01:26.2]}
29. Nxd6 {[%clk 0:01:30.9]} 29... Qxd6 {[%clk 0:01:23.1]} 30. Rbc3 {[%clk
0:01:29.4]} 30... Rdh8 {[%clk 0:01:20]} 31. Ba6 {[%clk 0:01:22.7]} 31... Bf5+
{[%clk 0:01:17.7]} 32. Ka1 {[%clk 0:01:21.8]} 32... Rh1 {[%clk 0:01:10.7]} 33.
a3 {[%clk 0:01:22.1]} 33... Bd7 {[%clk 0:01:00.4]} 34. Qc2 {[%clk 0:01:13.2]}
34... Rxc1+ {[%clk 0:00:56.7]} 35. Qxc1 {[%clk 0:01:13.2]} 35... b5 {[%clk
0:00:52.6]} 36. Qg1 {[%clk 0:00:40.6]} 36... Qxa6 {[%clk 0:00:39.3]} 37. Qg3+
{[%clk 0:00:40.7]} 37... Ka8 {[%clk 0:00:37.4]} 38. Qg7 {[%clk 0:00:33.1]} 38...
Rc8 {[%clk 0:00:19.6]} 39. Rb3 {[%clk 0:00:26]} 39... b4 {[%clk 0:00:18]} 40.
Qxf7 {[%clk 0:00:24.3]} 40... Rc1+ {[%clk 0:00:11.5]} 41. Ka2 {[%clk 0:00:24.3]}
41... Qc4 {[%clk 0:00:09.2]} 42. Qxd7 {[%clk 0:00:21.9]} 42... Ra1+ {[%clk
0:00:08.5]} 43. Kxa1 {[%clk 0:00:22.3]} 43... Qxb3 {[%clk 0:00:08.8]} 44. Qc6+
{[%clk 0:00:20.7]} 44... Kb8 {[%clk 0:00:07.5]} 45. Qb5+ {[%clk 0:00:20.2]}
45... Kc8 {[%clk 0:00:07.2]} 46. Qxb4 {[%clk 0:00:18.4]} 46... Qd1+ {[%clk
0:00:06.9]} 47. Ka2 {[%clk 0:00:18.8]} 1-0

[Event "*** SCC Grand Prix: Titled Tuesday Blitz"]
[Site "Chess.com"]
[Date "2020.10.13"]
[Round "2"]
[White "MariaFominykh"]
[Black "K-Nygren"]
[Result "1-0"]
[WhiteElo "2308"]
[BlackElo "2472"]
[TimeControl "180+1"]
[EndTime "10:17:51 PDT"]
[Termination "MariaFominykh won by resignation"]

1. d4 {[%clk 0:03:00.9]} 1... Nf6 {[%clk 0:02:59.2]} 2. Nf3 {[%clk 0:02:58.7]}
2... g6 {[%clk 0:02:59.4]} 3. c4 {[%clk 0:02:58.3]} 3... Bg7 {[%clk 0:02:58.2]}
4. Nc3 {[%clk 0:02:57.3]} 4... d5 {[%clk 0:02:58.3]} 5. cxd5 {[%clk 0:02:56.6]}
5... Nxd5 {[%clk 0:02:59.2]} 6. Bd2 {[%clk 0:02:56.4]} 6... O-O {[%clk
0:02:58.7]} 7. e4 {[%clk 0:02:55.7]} 7... Nxc3 {[%clk 0:02:58.5]} 8. Bxc3 {[%clk
0:02:56.6]} 8... b6 {[%clk 0:02:58.6]} 9. Be2 {[%clk 0:02:28.2]} 9... Bb7 {[%clk
0:02:58.1]} 10. d5 {[%clk 0:02:27]} 10... Bxc3+ {[%clk 0:02:57]} 11. bxc3 {[%clk
0:02:27.9]} 11... c6 {[%clk 0:02:56]} 12. c4 {[%clk 0:02:25.1]} 12... Nd7 {[%clk
0:02:51.9]} 13. O-O {[%clk 0:02:12.3]} 13... Nc5 {[%clk 0:02:51.3]} 14. Qd4
{[%clk 0:01:51.2]} 14... Qc7 {[%clk 0:02:28.2]} 15. Rfe1 {[%clk 0:01:46.6]}
15... Qf4 {[%clk 0:02:24.5]} 16. Bf1 {[%clk 0:01:45]} 16... Rad8 {[%clk
0:02:23]} 17. Rad1 {[%clk 0:01:22.7]} 17... Rfe8 {[%clk 0:01:54.8]} 18. Ne5
{[%clk 0:01:10.3]} 18... Qf6 {[%clk 0:01:31.9]} 19. f3 {[%clk 0:00:51.1]} 19...
h5 {[%clk 0:01:13.9]} 20. Qa1 {[%clk 0:00:43.1]} 20... Kg7 {[%clk 0:01:00]} 21.
Be2 {[%clk 0:00:36.8]} 21... h4 {[%clk 0:00:41.6]} 22. Rd2 {[%clk 0:00:28.4]}
22... Kg8 {[%clk 0:00:39.4]} 23. Red1 {[%clk 0:00:27.8]} 23... h3 {[%clk
0:00:38.8]} 24. g3 {[%clk 0:00:26.7]} 24... cxd5 {[%clk 0:00:37.3]} 25. cxd5
{[%clk 0:00:26.1]} 25... Qg7 {[%clk 0:00:28.1]} 26. Bb5 {[%clk 0:00:25]} 26...
Rf8 {[%clk 0:00:26.7]} 27. Ng4 {[%clk 0:00:24.1]} 27... Qxa1 {[%clk 0:00:21.2]}
28. Rxa1 {[%clk 0:00:25]} 28... f5 {[%clk 0:00:21.3]} 29. Nf2 {[%clk 0:00:22.5]}
29... fxe4 {[%clk 0:00:20.3]} 30. fxe4 {[%clk 0:00:23.4]} 30... Rf3 {[%clk
0:00:16.8]} 31. Re1 {[%clk 0:00:19.1]} 31... Kg7 {[%clk 0:00:16.7]} 32. Nxh3
{[%clk 0:00:18.9]} 32... Rdf8 {[%clk 0:00:15.8]} 33. Nf4 {[%clk 0:00:18.9]}
33... g5 {[%clk 0:00:13.6]} 34. Be2 {[%clk 0:00:14.3]} 34... Ra3 {[%clk
0:00:11.6]} 35. Nh5+ {[%clk 0:00:14]} 35... Kh6 {[%clk 0:00:11.9]} 36. Bg4
{[%clk 0:00:13.4]} 36... Bc8 {[%clk 0:00:10]} 37. Bxc8 {[%clk 0:00:10.9]} 37...
Kxh5 {[%clk 0:00:10.9]} 38. Bh3 {[%clk 0:00:08.7]} 38... Rff3 {[%clk 0:00:08.3]}
39. Bg2 {[%clk 0:00:08]} 39... Rfd3 {[%clk 0:00:08.1]} 40. Red1 {[%clk
0:00:07.1]} 40... Rxd2 {[%clk 0:00:07.4]} 41. Rxd2 {[%clk 0:00:08]} 41... Kg6
{[%clk 0:00:07.3]} 42. e5 {[%clk 0:00:08.1]} 42... Rd3 {[%clk 0:00:06.2]} 43.
Rxd3 {[%clk 0:00:06.8]} 43... Nxd3 {[%clk 0:00:07.1]} 44. Be4+ {[%clk 0:00:07]}
1-0

[Event "*** SCC Grand Prix: Titled Tuesday Blitz"]
[Site "Chess.com"]
[Date "2020.10.13"]
[Round "2"]
[White "tigra"]
[Black "GianmarcoVaR"]
[Result "0-1"]
[WhiteElo "2831"]
[BlackElo "2580"]
[TimeControl "180+1"]
[EndTime "10:17:52 PDT"]
[Termination "GianmarcoVaR won on time"]

1. e4 {[%clk 0:03:00.9]} 1... c6 {[%clk 0:02:59]} 2. d4 {[%clk 0:02:59.3]} 2...
d5 {[%clk 0:02:59.9]} 3. Nc3 {[%clk 0:02:59.4]} 3... dxe4 {[%clk 0:03:00.3]} 4.
Nxe4 {[%clk 0:03:00.3]} 4... Bf5 {[%clk 0:03:00.8]} 5. Ng3 {[%clk 0:02:57.9]}
5... Bg6 {[%clk 0:03:01]} 6. N3e2 {[%clk 0:02:57.8]} 6... Nd7 {[%clk 0:02:47.5]}
7. Nf4 {[%clk 0:02:56.4]} 7... e5 {[%clk 0:02:47.9]} 8. Nxg6 {[%clk 0:02:56]}
8... hxg6 {[%clk 0:02:48.3]} 9. Nf3 {[%clk 0:02:55.9]} 9... Bd6 {[%clk
0:02:44.8]} 10. g3 {[%clk 0:02:53.1]} 10... Ngf6 {[%clk 0:02:43.1]} 11. Bg2
{[%clk 0:02:51.7]} 11... Qc7 {[%clk 0:02:30.7]} 12. O-O {[%clk 0:02:12.2]} 12...
O-O-O {[%clk 0:02:30]} 13. c3 {[%clk 0:02:12.1]} 13... Kb8 {[%clk 0:02:29.2]}
14. a4 {[%clk 0:02:11.4]} 14... exd4 {[%clk 0:02:20]} 15. cxd4 {[%clk
0:02:12.3]} 15... Nd5 {[%clk 0:02:09.8]} 16. a5 {[%clk 0:02:12]} 16... a6 {[%clk
0:02:09.8]} 17. Nd2 {[%clk 0:02:11.7]} 17... N7f6 {[%clk 0:02:06.9]} 18. Nc4
{[%clk 0:02:11.9]} 18... Ka7 {[%clk 0:01:59.9]} 19. Bd2 {[%clk 0:02:11.5]} 19...
Rde8 {[%clk 0:01:54.9]} 20. Qb3 {[%clk 0:02:10.4]} 20... Ne4 {[%clk 0:01:50]}
21. Rfd1 {[%clk 0:02:08.7]} 21... Nxf2 {[%clk 0:01:14.9]} 22. Kxf2 {[%clk
0:01:57]} 22... Rxh2 {[%clk 0:01:15.1]} 23. Qb6+ {[%clk 0:01:50.1]} 23... Nxb6
{[%clk 0:01:06.8]} 24. axb6+ {[%clk 0:01:43.8]} 24... Qxb6 {[%clk 0:01:07.1]}
25. Nxb6 {[%clk 0:01:44.2]} 25... Kxb6 {[%clk 0:01:08]} 26. Rh1 {[%clk
0:01:42.7]} 26... Rxg2+ {[%clk 0:01:07.9]} 27. Kxg2 {[%clk 0:01:41.6]} 27...
Re2+ {[%clk 0:01:08.8]} 28. Kf3 {[%clk 0:01:41.5]} 28... Rxd2 {[%clk 0:01:09.7]}
29. Rhd1 {[%clk 0:01:40.4]} 29... Rxb2 {[%clk 0:01:09.2]} 30. Rab1 {[%clk
0:01:40]} 30... Rb5 {[%clk 0:01:07.4]} 31. d5 {[%clk 0:01:38]} 31... cxd5 {[%clk
0:01:00.8]} 32. Rxb5+ {[%clk 0:01:37.3]} 32... Kxb5 {[%clk 0:01:01.2]} 33. Rxd5+
{[%clk 0:01:37.9]} 33... Kc6 {[%clk 0:01:01.7]} 34. Rd1 {[%clk 0:01:34.1]} 34...
b5 {[%clk 0:01:02]} 35. g4 {[%clk 0:01:34.5]} 35... b4 {[%clk 0:01:01.2]} 36.
Ke4 {[%clk 0:01:32.3]} 36... f5+ {[%clk 0:01:01.3]} 37. gxf5 {[%clk 0:01:31.7]}
37... gxf5+ {[%clk 0:01:02.2]} 38. Kxf5 {[%clk 0:01:32.4]} 38... a5 {[%clk
0:00:58.1]} 39. Ke4 {[%clk 0:01:33.3]} 39... a4 {[%clk 0:00:48.5]} 40. Kd4
{[%clk 0:01:33]} 40... Kb5 {[%clk 0:00:47.5]} 41. Rf1 {[%clk 0:01:22.9]} 41...
a3 {[%clk 0:00:30.7]} 42. Kd3 {[%clk 0:00:07.9]} 42... a2 {[%clk 0:00:28.8]} 43.
Kc2 {[%clk 0:00:07.7]} 43... Be5 {[%clk 0:00:28.2]} 44. Rd1 {[%clk 0:00:03.2]}
44... a1=Q {[%clk 0:00:29.1]} 45. Rd5+ {[%clk 0:00:02.6]} 45... Kc4 {[%clk
0:00:29.3]} 46. Rc5+ {[%clk 0:00:01.6]} 46... Kxc5 {[%clk 0:00:29.1]} 47. Kb3
{[%clk 0:00:02.4]} 47... Qd1+ {[%clk 0:00:25.7]} 0-1

[Event "*** SCC Grand Prix: Titled Tuesday Blitz"]
[Site "Chess.com"]
[Date "2020.10.13"]
[Round "2"]
[White "salomez"]
[Black "Orest_Vovk"]
[Result "0-1"]
[WhiteElo "2164"]
[BlackElo "2407"]
[TimeControl "180+1"]
[EndTime "10:17:52 PDT"]
[Termination "Orest_Vovk won on time"]

1. e4 {[%clk 0:03:00.9]} 1... Nc6 {[%clk 0:02:58.4]} 2. d4 {[%clk 0:02:54.6]}
2... e5 {[%clk 0:02:57.8]} 3. d5 {[%clk 0:02:53.9]} 3... Nce7 {[%clk 0:02:57.7]}
4. f4 {[%clk 0:02:48.5]} 4... Ng6 {[%clk 0:02:57.4]} 5. fxe5 {[%clk 0:02:29.9]}
5... Qh4+ {[%clk 0:02:56.4]} 6. Kd2 {[%clk 0:02:24.5]} 6... Qxe4 {[%clk
0:02:51.9]} 7. Nc3 {[%clk 0:02:13]} 7... Bb4 {[%clk 0:02:50.6]} 8. Nf3 {[%clk
0:02:07.7]} 8... Nxe5 {[%clk 0:02:39.7]} 9. Bd3 {[%clk 0:02:05.8]} 9... Nxf3+
{[%clk 0:02:35.4]} 10. Qxf3 {[%clk 0:01:44.8]} 10... Qxf3 {[%clk 0:02:34.9]} 11.
gxf3 {[%clk 0:01:31.2]} 11... Ne7 {[%clk 0:02:34.4]} 12. Re1 {[%clk 0:01:19.6]}
12... O-O {[%clk 0:02:30.9]} 13. Bc4 {[%clk 0:01:15.4]} 13... Nf5 {[%clk
0:02:21.1]} 14. a3 {[%clk 0:01:05.8]} 14... Bxc3+ {[%clk 0:02:15.4]} 15. Kxc3
{[%clk 0:01:05.3]} 15... d6 {[%clk 0:02:15.4]} 16. Bd3 {[%clk 0:00:55.7]} 16...
Bd7 {[%clk 0:02:09.4]} 17. Bxf5 {[%clk 0:00:43.1]} 17... Bxf5 {[%clk 0:02:08.9]}
18. Bf4 {[%clk 0:00:38.4]} 18... Rfe8 {[%clk 0:02:06.7]} 19. Bg3 {[%clk
0:00:37.4]} 19... f6 {[%clk 0:02:04.6]} 20. Rxe8+ {[%clk 0:00:37]} 20... Rxe8
{[%clk 0:02:03.6]} 21. Re1 {[%clk 0:00:37.9]} 21... Rxe1 {[%clk 0:02:03.2]} 22.
Bxe1 {[%clk 0:00:37.2]} 22... g5 {[%clk 0:01:56.2]} 23. Kd2 {[%clk 0:00:31.8]}
23... Kf7 {[%clk 0:01:54.5]} 24. c4 {[%clk 0:00:21.7]} 24... b6 {[%clk
0:01:46.8]} 25. Kc3 {[%clk 0:00:18.3]} 25... a5 {[%clk 0:01:43.4]} 26. Kd4
{[%clk 0:00:15.1]} 26... Bb1 {[%clk 0:01:39.5]} 27. b4 {[%clk 0:00:14]} 27... a4
{[%clk 0:01:33.4]} 28. c5 {[%clk 0:00:13]} 28... b5 {[%clk 0:01:29]} 29. cxd6
{[%clk 0:00:11.8]} 29... cxd6 {[%clk 0:01:29.1]} 30. Bg3 {[%clk 0:00:12.4]}
30... Ke7 {[%clk 0:01:26.9]} 31. h4 {[%clk 0:00:12]} 31... h5 {[%clk 0:01:20.8]}
32. f4 {[%clk 0:00:06.9]} 32... g4 {[%clk 0:01:19.8]} 33. Bf2 {[%clk 0:00:05.5]}
33... Kf7 {[%clk 0:01:11]} 34. Bg3 {[%clk 0:00:04.6]} 34... Bf5 {[%clk
0:01:08.2]} 35. Bh2 {[%clk 0:00:04]} 35... Kg6 {[%clk 0:01:03.4]} 36. Bg3 {[%clk
0:00:04.9]} 36... Bd7 {[%clk 0:00:58.7]} 37. Ke3 {[%clk 0:00:04.3]} 37... Kf5
{[%clk 0:00:58.3]} 38. Bh2 {[%clk 0:00:03.6]} 38... Be8 {[%clk 0:00:54.5]} 39.
Kd4 {[%clk 0:00:03.8]} 39... Bf7 {[%clk 0:00:54.6]} 40. Bg3 {[%clk 0:00:04]}
40... Bg8 {[%clk 0:00:54]} 41. Bh2 {[%clk 0:00:04.1]} 41... g3 {[%clk
0:00:46.2]} 42. Bxg3 {[%clk 0:00:04.3]} 42... Kg4 {[%clk 0:00:46.4]} 43. Be1
{[%clk 0:00:03.6]} 43... f5 {[%clk 0:00:43.8]} 44. Bf2 {[%clk 0:00:02.5]} 44...
Kf3 {[%clk 0:00:34.6]} 45. Be1 {[%clk 0:00:01.5]} 45... Ke2 {[%clk 0:00:30]} 46.
Bg3 {[%clk 0:00:01.3]} 46... Kd2 {[%clk 0:00:23.2]} 0-1